[Event "Titled Tuesday Blitz August 09 Late 2022"]
[White "Muradli, Mahammad"]
[Black "Bortnyk, Olexandr"]
[WhiteFideId "13409301"]
[BlackFideId "14120828"]
[WhiteElo "2611"]
[BlackElo "2723"]
[Result "0-1"]
[Round "05"]
[TimeControl "180+1"]
[Date "2022.08.09"]
[WhiteClock "0:00:03"]
[BlackClock "0:00:03"]

1. Nf3 {[%clk 0:03:00]}  d6 {[%clk 0:03:00]} 2. c4 {[%clk 0:02:57]}  Nf6 {[%clk 0:03:00]} 3. Nc3 {[%clk 0:02:58]}  Bf5 {[%clk 0:02:56]} 4. g3 {[%clk 0:02:58]}  g6 {[%clk 0:02:55]} 5. Bg2 {[%clk 0:02:58]}  Qc8 {[%clk 0:02:53]} 6. Qb3 {[%clk 0:02:52]}  Nc6 {[%clk 0:02:53]} 7. d4 {[%clk 0:02:50]}  Bg7 {[%clk 0:02:50]} 8. d5 {[%clk 0:02:50]}  Nd8 {[%clk 0:02:51]} 9. O-O {[%clk 0:02:46]}  Bh3 {[%clk 0:02:50]} 10. e4 {[%clk 0:02:47]}  Bxg2 {[%clk 0:02:37]} 11. Kxg2 {[%clk 0:02:47]}  O-O {[%clk 0:02:35]} 12. Re1 {[%clk 0:02:46]}  Nd7 {[%clk 0:02:35]} 13. Bg5 {[%clk 0:02:45]}  e6 {[%clk 0:02:30]} 14. Rad1 {[%clk 0:02:38]}  a5 {[%clk 0:02:24]} 15. Qc2 {[%clk 0:02:38]}  Nc5 {[%clk 0:02:22]} 16. e5 {[%clk 0:02:26]}  Re8 {[%clk 0:02:07]} 17. exd6 {[%clk 0:02:22]}  cxd6 {[%clk 0:02:03]} 18. Nb5 {[%clk 0:02:22]}  Bf8 {[%clk 0:01:47]} 19. dxe6 {[%clk 0:02:00]}  Ndxe6 {[%clk 0:01:48]} 20. Be3 {[%clk 0:01:57]}  Qc6 {[%clk 0:01:44]} 21. Rd5 {[%clk 0:01:57]}  Nd7 {[%clk 0:01:28]} 22. Nfd4 {[%clk 0:01:51]}  Nxd4 {[%clk 0:01:25]} 23. Nxd4 {[%clk 0:01:52]}  Qa6 {[%clk 0:01:25]} 24. Rd1 {[%clk 0:01:40]}  Rac8 {[%clk 0:01:21]} 25. Nb5 {[%clk 0:01:27]}  Nf6 {[%clk 0:01:13]} 26. Rxd6 {[%clk 0:01:08]}  Bxd6 {[%clk 0:01:04]} 27. Nxd6 {[%clk 0:01:08]}  Qc6+ {[%clk 0:00:30]} 28. Kg1 {[%clk 0:01:07]}  Rxe3 {[%clk 0:00:29]} 29. Nxc8 {[%clk 0:00:32]}  Re6 {[%clk 0:00:27]} 30. Na7 {[%clk 0:00:31]}  Qf3 {[%clk 0:00:27]} 31. Qb3 {[%clk 0:00:31]}  Qf5 {[%clk 0:00:05]} 32. Qxb7 {[%clk 0:00:22]}  Re2 {[%clk 0:00:05]} 33. Qc8+ {[%clk 0:00:13]}  Qxc8 {[%clk 0:00:04]} 34. Nxc8 {[%clk 0:00:14]}  Rxb2 {[%clk 0:00:04]} 35. c5 {[%clk 0:00:12]}  Rxa2 {[%clk 0:00:04]} 36. Rc1 {[%clk 0:00:11]}  Nd5 {[%clk 0:00:02]} 37. c6 {[%clk 0:00:06]}  Nc7 {[%clk 0:00:03]} 38. Rb1 {[%clk 0:00:05]}  Rc2 {[%clk 0:00:02]} 39. Rb7 {[%clk 0:00:06]}  Nd5 {[%clk 0:00:01]} 40. Rd7 {[%clk 0:00:05]}  Rc1+ {[%clk 0:00:01]} 41. Kg2 {[%clk 0:00:05]}  Rxc6 {[%clk 0:00:02]} 42. Nd6 {[%clk 0:00:03]}  Nb6 {[%clk 0:00:02]} 43. Rd8+ {[%clk 0:00:03]}  Kg7 {[%clk 0:00:03]} 44. Ne8+ {[%clk 0:00:04]}  Kh6 {[%clk 0:00:03]} 45. h4 {[%clk 0:00:04]}  f5 {[%clk 0:00:03]} 46. Rb8 {[%clk 0:00:04]}  Nd7 {[%clk 0:00:03]} 47. Rb7 {[%clk 0:00:03]}  Nf6 {[%clk 0:00:02]} 48. Nc7 {[%clk 0:00:03]}  f4 {[%clk 0:00:02]} 49. Nb5 {[%clk 0:00:03]}  fxg3 {[%clk 0:00:02]} 50. fxg3 {[%clk 0:00:04]}  Rc2+ {[%clk 0:00:02]} 51. Kh3 {[%clk 0:00:04]}  Rb2 {[%clk 0:00:03]} 52. Rf7 {[%clk 0:00:02]}  Rxb5 {[%clk 0:00:03]} 53. Rxf6 {[%clk 0:00:02]}  Rb3 {[%clk 0:00:03]} 54. Ra6 {[%clk 0:00:03]}  Ra3 {[%clk 0:00:03]} 55. Kg4 {[%clk 0:00:04]}  Ra4+ {[%clk 0:00:03]} 56. Kh3 {[%clk 0:00:04]}  Ra1 {[%clk 0:00:04]} 57. Ra7 {[%clk 0:00:05]}  Ra2 {[%clk 0:00:04]} 58. Kg4 {[%clk 0:00:06]}  Ra4+ {[%clk 0:00:04]} 59. Kh3 {[%clk 0:00:07]}  Ra3 {[%clk 0:00:04]} 60. Kg4 {[%clk 0:00:08]}  Ra1 {[%clk 0:00:03]} 61. Kf4 {[%clk 0:00:07]}  Ra4+ {[%clk 0:00:03]} 62. Kf3 {[%clk 0:00:07]}  g5 {[%clk 0:00:03]} 63. Ra6+ {[%clk 0:00:07]}  Kh5 {[%clk 0:00:03]} 64. hxg5 {[%clk 0:00:04]}  Kxg5 {[%clk 0:00:04]} 65. Ra7 {[%clk 0:00:05]}  h6 {[%clk 0:00:04]} 66. Ra8 {[%clk 0:00:05]}  Ra3+ {[%clk 0:00:04]} 67. Kg2 {[%clk 0:00:05]}  Ra1 {[%clk 0:00:05]} 68. Rg8+ {[%clk 0:00:05]}  Kf6 {[%clk 0:00:05]} 69. Ra8 {[%clk 0:00:05]}  a4 {[%clk 0:00:05]} 70. Ra6+ {[%clk 0:00:06]}  Kg5 {[%clk 0:00:05]} 71. Ra5+ {[%clk 0:00:07]}  Kg4 {[%clk 0:00:06]} 72. Ra6 {[%clk 0:00:05]}  Ra2+ {[%clk 0:00:06]} 73. Kf1 {[%clk 0:00:05]}  h5 {[%clk 0:00:06]} 74. Ra5 {[%clk 0:00:03]}  a3 {[%clk 0:00:04]} 75. Ra4+ {[%clk 0:00:01]}  Kxg3 {[%clk 0:00:04]} 76. Ra5 {[%clk 0:00:02]}  Ra1+ {[%clk 0:00:04]} 77. Ke2 {[%clk 0:00:03]}  a2 {[%clk 0:00:03]} 78. Ra3+ {[%clk 0:00:03]}  Kf4 {[%clk 0:00:03]} 79. Ra4+ {[%clk 0:00:03]}  Ke5 {[%clk 0:00:03]} 0-1


[Site "https://www.chess.com"]

[Event "Titled Tuesday Blitz August 09 Late 2022"]
[White "Naroditsky, Daniel"]
[Black "Galperin, Platon"]
[WhiteFideId "2026961"]
[BlackFideId "14165414"]
[WhiteElo "2628"]
[BlackElo "2435"]
[Result "0-1"]
[Round "05"]
[TimeControl "180+1"]
[Date "2022.08.09"]
[WhiteClock "0:00:06"]
[BlackClock "0:00:04"]

1. e4 {[%clk 0:03:00]}  e5 {[%clk 0:02:58]} 2. Nf3 {[%clk 0:03:00]}  d6 {[%clk 0:02:58]} 3. Bc4 {[%clk 0:02:58]}  Nf6 {[%clk 0:02:57]} 4. Nc3 {[%clk 0:02:58]}  Be7 {[%clk 0:02:56]} 5. d3 {[%clk 0:02:54]}  O-O {[%clk 0:02:56]} 6. O-O {[%clk 0:02:54]}  c6 {[%clk 0:02:56]} 7. a4 {[%clk 0:02:52]}  a5 {[%clk 0:02:55]} 8. Re1 {[%clk 0:02:48]}  Na6 {[%clk 0:02:55]} 9. h3 {[%clk 0:02:46]}  Re8 {[%clk 0:02:51]} 10. Ne2 {[%clk 0:02:34]}  Nc5 {[%clk 0:02:46]} 11. Ng3 {[%clk 0:02:33]}  Bf8 {[%clk 0:02:46]} 12. Be3 {[%clk 0:02:25]}  g6 {[%clk 0:02:38]} 13. Qb1 {[%clk 0:02:15]}  Qc7 {[%clk 0:02:06]} 14. Qa2 {[%clk 0:02:05]}  Rb8 {[%clk 0:01:48]} 15. Bd2 {[%clk 0:01:35]}  Be6 {[%clk 0:01:42]} 16. Bxe6 {[%clk 0:01:30]}  Nxe6 {[%clk 0:01:42]} 17. Bc3 {[%clk 0:01:23]}  Nc5 {[%clk 0:01:25]} 18. Re2 {[%clk 0:01:16]}  Bg7 {[%clk 0:01:20]} 19. Rae1 {[%clk 0:01:15]}  Ne6 {[%clk 0:01:20]} 20. Rd1 {[%clk 0:01:12]}  Nf4 {[%clk 0:01:18]} 21. Ree1 {[%clk 0:01:12]}  d5 {[%clk 0:01:13]} 22. exd5 {[%clk 0:01:00]}  N6xd5 {[%clk 0:01:14]} 23. Bd2 {[%clk 0:01:01]}  Ne6 {[%clk 0:01:06]} 24. Ne4 {[%clk 0:00:59]}  h6 {[%clk 0:01:02]} 25. Qb1 {[%clk 0:00:51]}  Kh7 {[%clk 0:01:00]} 26. Nc3 {[%clk 0:00:48]}  Nb4 {[%clk 0:00:55]} 27. Ne2 {[%clk 0:00:47]}  Nc5 {[%clk 0:00:53]} 28. b3 {[%clk 0:00:39]}  Nd5 {[%clk 0:00:45]} 29. Qc1 {[%clk 0:00:35]}  e4 {[%clk 0:00:41]} 30. dxe4 {[%clk 0:00:34]}  Nxe4 {[%clk 0:00:42]} 31. Bf4 {[%clk 0:00:30]}  Nxf4 {[%clk 0:00:41]} 32. Qxf4 {[%clk 0:00:31]}  Qb6 {[%clk 0:00:24]} 33. Qe3 {[%clk 0:00:16]}  Qxe3 {[%clk 0:00:20]} 34. fxe3 {[%clk 0:00:17]}  Rbd8 {[%clk 0:00:20]} 35. Ned4 {[%clk 0:00:14]}  Nc3 {[%clk 0:00:17]} 36. Rd3 {[%clk 0:00:14]}  Nd5 {[%clk 0:00:16]} 37. Kf2 {[%clk 0:00:15]}  Nb4 {[%clk 0:00:11]} 38. Rd2 {[%clk 0:00:07]}  c5 {[%clk 0:00:11]} 39. Nb5 {[%clk 0:00:08]}  Rxd2+ {[%clk 0:00:10]} 40. Nxd2 {[%clk 0:00:09]}  Nxc2 {[%clk 0:00:10]} 41. Rc1 {[%clk 0:00:10]}  Nb4 {[%clk 0:00:08]} 42. Ke2 {[%clk 0:00:10]}  b6 {[%clk 0:00:07]} 43. Nc4 {[%clk 0:00:10]}  Re6 {[%clk 0:00:05]} 44. Rd1 {[%clk 0:00:09]}  f5 {[%clk 0:00:05]} 45. Rg1 {[%clk 0:00:06]}  f4 {[%clk 0:00:05]} 46. Rd1 {[%clk 0:00:04]}  fxe3 {[%clk 0:00:01]} 47. Rd7 {[%clk 0:00:04]}  Nc2 {[%clk 0:00:01]} 48. Rb7 {[%clk 0:00:01]}  Nd4+ {[%clk 0:00:02]} 49. Nxd4 {[%clk 0:00:01]}  cxd4 {[%clk 0:00:03]} 50. Rxb6 {[%clk 0:00:02]}  Re7 {[%clk 0:00:01]} 51. Rb5 {[%clk 0:00:01]}  d3+ {[%clk 0:00:01]} 52. Ke1 {[%clk 0:00:02]}  e2 {[%clk 0:00:02]} 53. Rc5 {[%clk 0:00:02]}  Bc3+ {[%clk 0:00:03]} 54. Nd2 {[%clk 0:00:03]}  Bxd2+ {[%clk 0:00:03]} 55. Kxd2 {[%clk 0:00:03]}  e1=Q+ {[%clk 0:00:04]} 56. Kxd3 {[%clk 0:00:04]}  Qe2+ {[%clk 0:00:03]} 57. Kd4 {[%clk 0:00:04]}  Qe3+ {[%clk 0:00:04]} 58. Kc4 {[%clk 0:00:04]}  Re4+ {[%clk 0:00:04]} 59. Kb5 {[%clk 0:00:05]}  Rb4+ {[%clk 0:00:04]} 60. Kc6 {[%clk 0:00:06]}  Qe6+ {[%clk 0:00:04]} 0-1


[Site "https://www.chess.com"]

[Event "Titled Tuesday Blitz August 09 Late 2022"]
[White "Nazaretyan, Tigran"]
[Black "Grischuk, Alexander"]
[WhiteFideId "24162345"]
[BlackFideId "4126025"]
[WhiteElo "2183"]
[BlackElo "2762"]
[Result "0-1"]
[Round "05"]
[TimeControl "180+1"]
[Date "2022.08.09"]
[WhiteClock "0:00:17"]
[BlackClock "0:02:02"]

1. d4 {[%clk 0:02:06]}  Nf6 {[%clk 0:02:49]} 2. c4 {[%clk 0:02:04]}  e6 {[%clk 0:02:50]} 3. Nf3 {[%clk 0:02:04]}  b6 {[%clk 0:02:49]} 4. a3 {[%clk 0:02:04]}  Bb7 {[%clk 0:02:48]} 5. Nc3 {[%clk 0:02:04]}  d5 {[%clk 0:02:48]} 6. cxd5 {[%clk 0:02:02]}  Nxd5 {[%clk 0:02:49]} 7. e3 {[%clk 0:02:01]}  g6 {[%clk 0:02:48]} 8. Bb5+ {[%clk 0:02:01]}  c6 {[%clk 0:02:48]} 9. Bd3 {[%clk 0:02:00]}  Bg7 {[%clk 0:02:48]} 10. h4 {[%clk 0:02:00]}  c5 {[%clk 0:02:36]} 11. h5 {[%clk 0:01:52]}  cxd4 {[%clk 0:02:33]} 12. exd4 {[%clk 0:01:51]}  Nxc3 {[%clk 0:02:33]} 13. bxc3 {[%clk 0:01:50]}  Qc7 {[%clk 0:02:33]} 14. Bd2 {[%clk 0:01:42]}  Nd7 {[%clk 0:02:33]} 15. h6 {[%clk 0:01:38]}  Bf6 {[%clk 0:02:32]} 16. a4 {[%clk 0:01:34]}  O-O {[%clk 0:02:24]} 17. a5 {[%clk 0:01:22]}  e5 {[%clk 0:02:14]} 18. axb6 {[%clk 0:00:52]}  axb6 {[%clk 0:02:15]} 19. Rxa8 {[%clk 0:00:51]}  Bxa8 {[%clk 0:02:15]} 20. dxe5 {[%clk 0:00:38]}  Nxe5 {[%clk 0:02:16]} 21. Nxe5 {[%clk 0:00:36]}  Qxe5+ {[%clk 0:02:17]} 22. Kf1 {[%clk 0:00:35]}  Rd8 {[%clk 0:02:06]} 23. Qa4 {[%clk 0:00:17]}  Qd5 {[%clk 0:02:02]} 0-1


[Site "https://www.chess.com"]

[Event "Titled Tuesday Blitz August 09 Late 2022"]
[White "Oparin, Grigoriy"]
[Black "Averjanov, Alexey"]
[WhiteFideId "24125890"]
[BlackFideId "14109867"]
[WhiteElo "2639"]
[BlackElo "2621"]
[Result "1-0"]
[Round "05"]
[TimeControl "180+1"]
[Date "2022.08.09"]
[WhiteClock "0:00:20"]
[BlackClock "0:00:11"]

1. c4 {[%clk 0:03:00]}  c5 {[%clk 0:02:59]} 2. Nf3 {[%clk 0:03:01]}  Nc6 {[%clk 0:02:57]} 3. Nc3 {[%clk 0:03:01]}  g6 {[%clk 0:02:56]} 4. e3 {[%clk 0:02:57]}  Nf6 {[%clk 0:02:56]} 5. d4 {[%clk 0:02:57]}  cxd4 {[%clk 0:02:57]} 6. exd4 {[%clk 0:02:56]}  d5 {[%clk 0:02:57]} 7. cxd5 {[%clk 0:02:55]}  Nxd5 {[%clk 0:02:58]} 8. Bc4 {[%clk 0:02:55]}  Nxc3 {[%clk 0:02:56]} 9. bxc3 {[%clk 0:02:55]}  Bg7 {[%clk 0:02:55]} 10. O-O {[%clk 0:02:56]}  O-O {[%clk 0:02:55]} 11. Re1 {[%clk 0:02:56]}  e6 {[%clk 0:02:54]} 12. h4 {[%clk 0:02:53]}  h5 {[%clk 0:02:51]} 13. Bg5 {[%clk 0:02:53]}  Bf6 {[%clk 0:02:51]} 14. Qd2 {[%clk 0:02:50]}  b6 {[%clk 0:02:48]} 15. Qf4 {[%clk 0:02:49]}  Bxg5 {[%clk 0:02:44]} 16. Nxg5 {[%clk 0:02:50]}  Ne7 {[%clk 0:02:38]} 17. Re5 {[%clk 0:02:43]}  Nf5 {[%clk 0:02:28]} 18. Rae1 {[%clk 0:02:41]}  Bd7 {[%clk 0:02:25]} 19. d5 {[%clk 0:02:31]}  exd5 {[%clk 0:02:20]} 20. Bxd5 {[%clk 0:02:32]}  Kg7 {[%clk 0:01:53]} 21. Bxa8 {[%clk 0:01:22]}  Qxa8 {[%clk 0:01:51]} 22. R5e2 {[%clk 0:01:21]}  Bc6 {[%clk 0:01:43]} 23. f3 {[%clk 0:01:20]}  Qd8 {[%clk 0:01:40]} 24. Rd2 {[%clk 0:01:14]}  Qf6 {[%clk 0:01:40]} 25. c4 {[%clk 0:00:58]}  Qc3 {[%clk 0:01:31]} 26. Rde2 {[%clk 0:00:42]}  Kg8 {[%clk 0:01:18]} 27. Kh2 {[%clk 0:00:40]}  Rd8 {[%clk 0:01:05]} 28. Qc7 {[%clk 0:00:35]}  Qf6 {[%clk 0:01:02]} 29. Re6 {[%clk 0:00:28]}  fxe6 {[%clk 0:00:50]} 30. Qh7+ {[%clk 0:00:22]}  Kf8 {[%clk 0:00:50]} 31. Nxe6+ {[%clk 0:00:23]}  Ke8 {[%clk 0:00:50]} 32. Nc7+ {[%clk 0:00:07]}  Kf8 {[%clk 0:00:49]} 33. Ne6+ {[%clk 0:00:08]}  Ke8 {[%clk 0:00:49]} 34. Nf4+ {[%clk 0:00:09]}  Ne7 {[%clk 0:00:39]} 35. Nxg6 {[%clk 0:00:09]}  Qd6+ {[%clk 0:00:16]} 36. Kh1 {[%clk 0:00:09]}  Kd7 {[%clk 0:00:16]} 37. Nxe7 {[%clk 0:00:06]}  Kc7 {[%clk 0:00:13]} 38. Nd5+ {[%clk 0:00:06]}  Kb8 {[%clk 0:00:12]} 39. Qxh5 {[%clk 0:00:04]}  Bb7 {[%clk 0:00:07]} 40. Qe5 {[%clk 0:00:04]}  Qxe5 {[%clk 0:00:06]} 41. Rxe5 {[%clk 0:00:05]}  b5 {[%clk 0:00:06]} 42. Ne3 {[%clk 0:00:05]}  b4 {[%clk 0:00:06]} 43. h5 {[%clk 0:00:06]}  Rd6 {[%clk 0:00:05]} 44. Kh2 {[%clk 0:00:06]}  Kc7 {[%clk 0:00:05]} 45. c5 {[%clk 0:00:06]}  Rd2 {[%clk 0:00:04]} 46. h6 {[%clk 0:00:06]}  Bxf3 {[%clk 0:00:04]} 47. h7 {[%clk 0:00:06]}  Rd8 {[%clk 0:00:04]} 48. gxf3 {[%clk 0:00:06]}  Rh8 {[%clk 0:00:04]} 49. Rh5 {[%clk 0:00:07]}  Kc6 {[%clk 0:00:04]} 50. Nc4 {[%clk 0:00:07]}  a5 {[%clk 0:00:04]} 51. Ne5+ {[%clk 0:00:08]}  Kb5 {[%clk 0:00:05]} 52. Ng6 {[%clk 0:00:09]}  Re8 {[%clk 0:00:04]} 53. h8=Q {[%clk 0:00:09]}  Rxh8 {[%clk 0:00:04]} 54. Nxh8 {[%clk 0:00:10]}  a4 {[%clk 0:00:03]} 55. Nf7 {[%clk 0:00:09]}  b3 {[%clk 0:00:03]} 56. axb3 {[%clk 0:00:10]}  axb3 {[%clk 0:00:04]} 57. c6+ {[%clk 0:00:10]}  Kxc6 {[%clk 0:00:04]} 58. Ne5+ {[%clk 0:00:11]}  Kb5 {[%clk 0:00:04]} 59. Nd3+ {[%clk 0:00:12]}  Kc4 {[%clk 0:00:04]} 60. Nb2+ {[%clk 0:00:12]}  Kc3 {[%clk 0:00:05]} 61. Na4+ {[%clk 0:00:13]}  Kb4 {[%clk 0:00:05]} 62. Rh4+ {[%clk 0:00:13]}  Ka3 {[%clk 0:00:05]} 63. Re4 {[%clk 0:00:14]}  Ka2 {[%clk 0:00:05]} 64. f4 {[%clk 0:00:14]}  b2 {[%clk 0:00:05]} 65. f5 {[%clk 0:00:14]}  b1=Q {[%clk 0:00:05]} 66. Nc3+ {[%clk 0:00:15]}  Kb2 {[%clk 0:00:06]} 67. Nxb1 {[%clk 0:00:15]}  Kc2 {[%clk 0:00:07]} 68. f6 {[%clk 0:00:16]}  Kd3 {[%clk 0:00:07]} 69. Re7 {[%clk 0:00:16]}  Kd4 {[%clk 0:00:07]} 70. f7 {[%clk 0:00:17]}  Kd5 {[%clk 0:00:08]} 71. f8=Q {[%clk 0:00:18]}  Kc4 {[%clk 0:00:09]} 72. Qd8 {[%clk 0:00:19]}  Kb3 {[%clk 0:00:10]} 73. Rc7 {[%clk 0:00:19]}  Ka2 {[%clk 0:00:10]} 74. Qb8 {[%clk 0:00:19]}  Ka1 {[%clk 0:00:11]} 75. Ra7# {[%clk 0:00:20]} 1-0


[Site "https://www.chess.com"]

[Event "Titled Tuesday Blitz August 09 Late 2022"]
[White "Papasimakopoulos, Alexandros"]
[Black "Alekseenko, Kirill"]
[WhiteFideId "4244125"]
[BlackFideId "4135539"]
[WhiteElo "2357"]
[BlackElo "2682"]
[Result "0-1"]
[Round "05"]
[TimeControl "180+1"]
[Date "2022.08.09"]
[WhiteClock "0:00:17"]
[BlackClock "0:00:45"]

1. d4 {[%clk 0:03:00]}  d5 {[%clk 0:02:47]} 2. c4 {[%clk 0:03:01]}  dxc4 {[%clk 0:02:47]} 3. Nf3 {[%clk 0:03:01]}  a6 {[%clk 0:02:45]} 4. e3 {[%clk 0:03:00]}  Bg4 {[%clk 0:02:45]} 5. Bxc4 {[%clk 0:02:59]}  e6 {[%clk 0:02:45]} 6. O-O {[%clk 0:02:58]}  Nc6 {[%clk 0:02:44]} 7. Nbd2 {[%clk 0:02:58]}  Nf6 {[%clk 0:02:44]} 8. Be2 {[%clk 0:02:58]}  Bd6 {[%clk 0:02:44]} 9. Nc4 {[%clk 0:02:58]}  O-O {[%clk 0:02:43]} 10. b3 {[%clk 0:02:59]}  Nd5 {[%clk 0:02:41]} 11. Bb2 {[%clk 0:02:56]}  f5 {[%clk 0:02:41]} 12. a3 {[%clk 0:02:55]}  Nce7 {[%clk 0:02:37]} 13. h3 {[%clk 0:02:55]}  Bh5 {[%clk 0:02:37]} 14. Nfe5 {[%clk 0:02:54]}  Bxe2 {[%clk 0:02:36]} 15. Qxe2 {[%clk 0:02:55]}  Nf6 {[%clk 0:02:36]} 16. Rac1 {[%clk 0:02:54]}  Ned5 {[%clk 0:02:36]} 17. f3 {[%clk 0:02:49]}  Nh5 {[%clk 0:02:35]} 18. Qd2 {[%clk 0:02:42]}  Qg5 {[%clk 0:02:32]} 19. e4 {[%clk 0:02:38]}  Ndf4 {[%clk 0:02:27]} 20. Kh2 {[%clk 0:02:23]}  Rad8 {[%clk 0:02:18]} 21. Qf2 {[%clk 0:02:16]}  Nd3 {[%clk 0:02:09]} 22. Qe3 {[%clk 0:01:39]}  Qxe3 {[%clk 0:02:02]} 23. Nxe3 {[%clk 0:01:39]}  Nxb2 {[%clk 0:02:03]} 24. exf5 {[%clk 0:01:33]}  Nd3 {[%clk 0:02:00]} 25. Rcd1 {[%clk 0:01:26]}  Nxe5 {[%clk 0:01:59]} 26. dxe5 {[%clk 0:01:26]}  Bxe5+ {[%clk 0:01:59]} 27. Kg1 {[%clk 0:01:27]}  Ng3 {[%clk 0:01:57]} 28. Rfe1 {[%clk 0:01:26]}  exf5 {[%clk 0:01:51]} 29. Kf2 {[%clk 0:01:24]}  f4 {[%clk 0:01:49]} 30. Nc2 {[%clk 0:01:20]}  Bd6 {[%clk 0:01:46]} 31. b4 {[%clk 0:01:20]}  Rfe8 {[%clk 0:01:46]} 32. Rxe8+ {[%clk 0:01:12]}  Rxe8 {[%clk 0:01:46]} 33. Rd2 {[%clk 0:01:13]}  a5 {[%clk 0:01:46]} 34. h4 {[%clk 0:00:55]}  h5 {[%clk 0:01:45]} 35. Kg1 {[%clk 0:00:52]}  axb4 {[%clk 0:01:43]} 36. axb4 {[%clk 0:00:53]}  Bxb4 {[%clk 0:01:43]} 37. Rd5 {[%clk 0:00:49]}  c6 {[%clk 0:01:36]} 38. Rg5 {[%clk 0:00:47]}  b6 {[%clk 0:01:31]} 39. Kh2 {[%clk 0:00:46]}  Be7 {[%clk 0:01:29]} 40. Re5 {[%clk 0:00:44]}  Kf7 {[%clk 0:01:29]} 41. Nd4 {[%clk 0:00:44]}  Bf6 {[%clk 0:01:28]} 42. Rxe8 {[%clk 0:00:44]}  Kxe8 {[%clk 0:01:28]} 43. Nxc6 {[%clk 0:00:45]}  b5 {[%clk 0:01:27]} 44. Kg1 {[%clk 0:00:43]}  Kd7 {[%clk 0:01:25]} 45. Nb4 {[%clk 0:00:41]}  Bd4+ {[%clk 0:01:25]} 46. Kh2 {[%clk 0:00:40]}  Bc3 {[%clk 0:01:25]} 47. Nd5 {[%clk 0:00:40]}  b4 {[%clk 0:01:25]} 48. Nxf4 {[%clk 0:00:40]}  b3 {[%clk 0:01:23]} 49. Nd3 {[%clk 0:00:40]}  Nf5 {[%clk 0:01:19]} 50. Nc5+ {[%clk 0:00:40]}  Ke7 {[%clk 0:01:18]} 51. Nxb3 {[%clk 0:00:41]}  Nxh4 {[%clk 0:01:18]} 52. Nc5 {[%clk 0:00:39]}  Ng6 {[%clk 0:01:16]} 53. g3 {[%clk 0:00:36]}  Bd4 {[%clk 0:01:15]} 54. Ne4 {[%clk 0:00:36]}  Be3 {[%clk 0:01:12]} 55. Kh3 {[%clk 0:00:35]}  Ke6 {[%clk 0:01:11]} 56. Nc3 {[%clk 0:00:36]}  Bb6 {[%clk 0:01:05]} 57. Ne4 {[%clk 0:00:32]}  Bc7 {[%clk 0:01:05]} 58. Nc5+ {[%clk 0:00:32]}  Kf5 {[%clk 0:01:04]} 59. Ne4 {[%clk 0:00:31]}  Nf8 {[%clk 0:01:03]} 60. Nc3 {[%clk 0:00:30]}  Ne6 {[%clk 0:01:03]} 61. Nd5 {[%clk 0:00:31]}  g5 {[%clk 0:00:58]} 62. Ne3+ {[%clk 0:00:25]}  Kg6 {[%clk 0:00:58]} 63. Nd5 {[%clk 0:00:23]}  Bd6 {[%clk 0:00:58]} 64. Ne3 {[%clk 0:00:22]}  Nd4 {[%clk 0:00:58]} 65. Kg2 {[%clk 0:00:22]}  Bxg3 {[%clk 0:00:52]} 66. Kxg3 {[%clk 0:00:21]}  Nf5+ {[%clk 0:00:52]} 67. Nxf5 {[%clk 0:00:15]}  Kxf5 {[%clk 0:00:53]} 68. Kg2 {[%clk 0:00:15]}  Kf4 {[%clk 0:00:51]} 69. Kf2 {[%clk 0:00:16]}  h4 {[%clk 0:00:51]} 70. Kg2 {[%clk 0:00:16]}  Ke3 {[%clk 0:00:52]} 71. f4 {[%clk 0:00:14]}  gxf4 {[%clk 0:00:50]} 72. Kh3 {[%clk 0:00:15]}  f3 {[%clk 0:00:50]} 73. Kh2 {[%clk 0:00:16]}  f2 {[%clk 0:00:49]} 74. Kg2 {[%clk 0:00:16]}  Ke2 {[%clk 0:00:49]} 75. Kh2 {[%clk 0:00:17]}  h3 {[%clk 0:00:46]} 76. Kh1 {[%clk 0:00:16]}  f1=Q+ {[%clk 0:00:45]} 77. Kh2 {[%clk 0:00:17]}  Qg2# {[%clk 0:00:45]} 0-1


[Site "https://www.chess.com"]

[Event "Titled Tuesday Blitz August 09 Late 2022"]
[White "Paravyan, David"]
[Black "Korchmar, Vasiliy"]
[WhiteFideId "4194985"]
[BlackFideId "24131750"]
[WhiteElo "2569"]
[BlackElo "2370"]
[Result "1-0"]
[Round "05"]
[TimeControl "180+1"]
[Date "2022.08.09"]
[WhiteClock "0:01:43"]
[BlackClock "0:00:02"]

1. e4 {[%clk 0:03:00]}  c5 {[%clk 0:02:59]} 2. Nf3 {[%clk 0:03:00]}  d6 {[%clk 0:03:00]} 3. d4 {[%clk 0:03:00]}  cxd4 {[%clk 0:03:01]} 4. Nxd4 {[%clk 0:03:01]}  Nf6 {[%clk 0:03:01]} 5. Nc3 {[%clk 0:03:02]}  Nc6 {[%clk 0:03:02]} 6. Bg5 {[%clk 0:03:02]}  Bd7 {[%clk 0:03:02]} 7. Nxc6 {[%clk 0:03:01]}  bxc6 {[%clk 0:02:57]} 8. Bc4 {[%clk 0:03:01]}  e6 {[%clk 0:02:54]} 9. Qe2 {[%clk 0:02:56]}  Qa5 {[%clk 0:02:35]} 10. Bxf6 {[%clk 0:02:56]}  gxf6 {[%clk 0:02:36]} 11. O-O {[%clk 0:02:57]}  h5 {[%clk 0:02:27]} 12. f4 {[%clk 0:02:53]}  h4 {[%clk 0:02:25]} 13. Kh1 {[%clk 0:02:49]}  Qh5 {[%clk 0:02:06]} 14. Qf2 {[%clk 0:02:47]}  h3 {[%clk 0:01:43]} 15. g3 {[%clk 0:02:47]}  Be7 {[%clk 0:01:36]} 16. Rae1 {[%clk 0:02:47]}  Kf8 {[%clk 0:01:27]} 17. f5 {[%clk 0:02:44]}  e5 {[%clk 0:01:21]} 18. b4 {[%clk 0:02:43]}  Bd8 {[%clk 0:01:17]} 19. Qd2 {[%clk 0:02:37]}  Bc7 {[%clk 0:01:00]} 20. a4 {[%clk 0:02:37]}  Kg7 {[%clk 0:00:53]} 21. b5 {[%clk 0:02:36]}  Ba5 {[%clk 0:00:49]} 22. g4 {[%clk 0:02:09]}  Qh4 {[%clk 0:00:37]} 23. Qxd6 {[%clk 0:01:59]}  Bxc3 {[%clk 0:00:32]} 24. Qxd7 {[%clk 0:01:59]}  Rhf8 {[%clk 0:00:25]} 25. Re3 {[%clk 0:01:59]}  Bd4 {[%clk 0:00:07]} 26. Rg3 {[%clk 0:01:59]}  cxb5 {[%clk 0:00:07]} 27. axb5 {[%clk 0:01:57]}  Rac8 {[%clk 0:00:06]} 28. Bd3 {[%clk 0:01:54]}  Qg5 {[%clk 0:00:02]} 29. Rxh3 {[%clk 0:01:44]}  Rh8 {[%clk 0:00:02]} 30. Rh5 {[%clk 0:01:43]} 1-0


[Site "https://www.chess.com"]